bitfinex-derivatives/quotes_SOLF0:USTF0_20220110
["timestamp","ask_amount","ask_price","bid_price","bid_amount"]
[1641790550008,39.51766505,143.49,143.43,6.295]
[1641790550410,65.7794,143.5,143.43,6.295]
[1641790550809,65.7794,143.5,143.43,10.295]
[1641790551008,65.7794,143.5,143.44,1.81025254]
[1641790551409,3.94975479,143.49,143.44,1.81025254]
[1641790552009,3.94975479,143.49,143.44,29.47504254]
[1641790552410,3.94975479,143.49,143.44,27.66479]
[1641790552710,15.80254119,143.49,143.44,27.66479]
[1641790553311,15.80254119,143.49,143.42,7.31970244]
[1641790553511,17.54454119,143.49,143.42,5.57770244]
[1641790553812,15.80254119,143.48,143.42,5.57770244]
[1641790555114,4.0,143.46,143.41,62.29603651]
[1641790555314,1.742,143.47,143.41,27.66479]
[1641790555515,15.80254119,143.48,143.41,27.66479]
[1641790555715,15.80254119,143.46,143.41,27.66479]
[1641790556115,3.94975479,143.46,143.41,27.66479]
[1641790556516,19.80366264,143.49,143.41,27.66479]
[1641790556816,15.80366264,143.49,143.41,27.66479]
[1641790557014,95.18619,143.5,143.41,27.66479]
[1641790557015,15.80366264,143.48,143.41,27.66479]
[1641790557217,15.80366264,143.48,143.42,1.742]
[1641790557417,2.47942028,143.48,143.43,4.0]
[1641790557616,2.47942028,143.48,143.43,12.357]
[1641790557815,2.47942028,143.48,143.43,8.357]
[1641790558017,3.94975479,143.47,143.44,29.47498847]
[1641790558217,3.94975479,143.47,143.44,38.8899232]
[1641790558417,3.94975479,143.49,143.45,1.81019847]
[1641790558818,3.94975479,143.49,143.44,30.11448129]
[1641790559018,3.94975479,143.49,143.46,2.44969129]
[1641790559217,3.94975479,143.49,143.46,8.43069129]
[1641790560018,3.94975479,143.49,143.47,2.44969129]
[1641790562520,3.94975479,143.49,143.42,6.96621386]
[1641790562721,4.0,143.48,143.41,39.24720751]
[1641790562922,5.742,143.48,143.41,39.24720751]
[1641790563321,15.80198782,143.47,143.41,39.24720751]
[1641790563520,15.80198782,143.47,143.39,13.66237125]
[1641790563924,3.94975479,143.47,143.39,13.66237125]
[1641790564124,3.94975479,143.47,143.4,31.66479]
[1641790564324,3.94975479,143.47,143.41,5.742]
[1641790564528,3.94975479,143.48,143.43,4.0]
[1641790564726,3.94975479,143.48,143.44,1.742]
[1641790564924,65.7794,143.5,143.44,1.742]
[1641790564925,3.94975479,143.49,143.44,3.55240483]
[1641790565325,3.94975479,143.49,143.44,1.742]
[1641790565726,3.94975479,143.49,143.43,1.742]
[1641790565926,15.80127609,143.49,143.42,20.34191669]
[1641790566326,3.94975479,143.49,143.43,1.81010381]
[1641790566527,3.94975479,143.49,143.44,1.742]
[1641790567129,3.94975479,143.49,143.45,1.81010381]
[1641790567928,3.94975479,143.49,143.44,22.08304172]
[1641790568227,3.94975479,143.49,143.44,20.34104172]
[1641790568428,3.94975479,143.49,143.44,5.57703403]
[1641790568630,3.94975479,143.49,143.44,11.15401834]
[1641790568829,3.94975479,143.49,143.45,1.8098238]
[1641790570332,3.94975479,143.49,143.45,11.38639205]
[1641790570534,3.94975479,143.49,143.45,7.38639205]
[1641790570736,3.94975479,143.49,143.45,23.89239974]
[1641790571133,15.79954064,143.52,143.46,1.8098238]
[1641790571335,15.79954064,143.52,143.46,9.0438238]
[1641790571533,15.79954064,143.53,143.46,9.0438238]
[1641790571934,15.79954064,143.53,143.46,7.234]
[1641790572134,43.46433064,143.53,143.46,7.234]
[1641790572334,4.0,143.52,143.46,7.234]
[1641790572536,4.0,143.52,143.45,5.57656825]
[1641790572735,15.79954064,143.51,143.44,31.88742495]
[1641790572935,19.79954064,143.51,143.44,26.31041676]
[1641790573135,19.79954064,143.51,143.44,24.56841676]
[1641790573335,1.742,143.5,143.44,24.56841676]
[1641790573536,17.59178585,143.5,143.44,24.56841676]
[1641790573736,17.54154064,143.5,143.44,14.76400769]
[1641790573934,11.84978585,143.49,143.43,55.32958]
[1641790574135,15.79954064,143.49,143.43,55.32958]
[1641790575938,19.79954064,143.49,143.42,14.76400769]
[1641790576337,3.94975479,143.48,143.43,1.81058398]
[1641790577338,3.94975479,143.48,143.42,1.81058398]
[1641790577538,1.742,143.47,143.42,1.81058398]
[1641790578139,3.94975479,143.46,143.42,1.81058398]
[1641790578339,1.742,143.45,143.42,1.81058398]
[1641790578540,1.742,143.45,143.41,42.42879769]
[1641790578940,3.94975479,143.44,143.42,1.81093403]
[1641790579141,3.94975479,143.44,143.42,7.74793403]
[1641790579840,3.94975479,143.46,143.42,5.937]
[1641790581643,3.94975479,143.46,143.43,1.81085]
[1641790582446,3.94975479,143.47,143.43,1.81085]
[1641790587753,4.0,143.46,143.43,1.81085]
[1641790587955,4.0,143.44,143.43,1.02965]
[1641790588156,10.587,143.44,143.4,9.80031252]
[1641790588754,10.587,143.44,143.37,9.80031252]
[1641790589354,3.95087198,143.43,143.38,1.43127305]
[1641790589554,7.95087198,143.43,143.38,1.43127305]
[1641790589756,3.95087198,143.43,143.38,1.43127305]
[1641790589955,4.0,143.39,143.36,9.80031252]
[1641790590156,36.66379,143.39,143.36,9.80031252]
[1641790590356,36.66379,143.39,143.34,39.24720751]
[1641790590657,36.66379,143.39,143.31,27.66479]
[1641790590658,36.66379,143.39,143.32,39.24720751]
[1641790590957,40.66379,143.39,143.32,39.24720751]
[1641790591559,4.0,143.34,143.33,1.150167]
[1641790591758,7.902,143.34,143.33,1.150167]
[1641790591956,15.85424236,143.34,143.3,1.150167]
[1641790592157,27.66479,143.32,143.3,1.150167]
[1641790592958,3.95224236,143.31,143.27,1.150167]
[1641790593360,27.66479,143.32,143.27,1.150167]
[1641790593760,70.5862,143.35,143.27,5.150167]
[1641790593961,70.5862,143.35,143.29,6.97252824]
[1641790594162,70.5862,143.35,143.29,34.63731824]
[1641790594460,70.5862,143.35,143.29,27.66479]
[1641790594661,70.5862,143.35,143.3,1.150167]
[1641790594862,70.5862,143.35,143.3,9.281167]
[1641790595262,70.5862,143.35,143.31,1.150167]
[1641790599274,70.5862,143.35,143.3,6.024]
[1641790599675,70.5862,143.35,143.31,1.13206432]
[1641790603681,70.5862,143.35,143.32,2.43316193]
[1641790604082,70.5862,143.35,143.33,1.13206432]
[1641790604281,70.5862,143.35,143.33,10.39306432]
[1641790604484,27.66479,143.37,143.33,10.39306432]
[1641790604683,4.0,143.36,143.33,10.39306432]
[1641790604984,7.95240494,143.36,143.34,1.13206432]
[1641790605385,3.95240494,143.35,143.34,1.13206432]
[1641790605584,7.95240494,143.35,143.34,1.13206432]
[1641790605786,7.95240494,143.35,143.3,6.024]
[1641790605985,7.95240494,143.35,143.27,40.3243499]
[1641790606488,4.0,143.35,143.31,2.4337573]
[1641790606686,1.744,143.34,143.31,2.4337573]
[1641790606885,5.744,143.36,143.31,2.4337573]
[1641790607086,4.0,143.36,143.31,7.048]
[1641790607286,4.0,143.36,143.32,0.89463167]
[1641790607686,3.95252079,143.35,143.32,0.89463167]
[1641790608387,4.0,143.34,143.32,0.89463167]
[1641790608788,4.0,143.33,143.32,0.89463167]
[1641790608992,7.95252079,143.33,143.27,27.66479]
[1641790609388,4.0,143.33,143.28,2.43369406]
[1641790609589,5.744,143.33,143.28,2.43369406]
[1641790610391,3.9532325,143.32,143.28,2.43369406]
[1641790612392,1.744,143.33,143.28,2.43369406]
[1641790612593,27.66479,143.34,143.28,2.43369406]
[1641790613094,3.95302058,143.33,143.28,2.43369406]
[1641790614500,27.66479,143.34,143.28,2.43369406]
[1641790615399,3.95287087,143.33,143.28,2.43369406]
[1641790616801,4.0,143.32,143.28,2.43369406]
[1641790616999,4.0,143.31,143.28,2.43369406]
[1641790617299,7.95287087,143.31,143.28,2.43369406]
[1641790617499,1.744,143.32,143.28,2.43369406]
[1641790617500,4.0,143.3,143.28,2.43369406]
[1641790617900,4.0,143.29,143.28,2.43369406]
[1641790618100,4.0,143.3,143.28,2.43369406]
[1641790618302,27.66479,143.29,143.28,2.43369406]
[1641790618600,3.95391577,143.29,143.26,14.76042461]
[1641790619000,68.9696,143.33,143.26,14.76042461]
[1641790619302,3.95303123,143.32,143.28,14.76042461]
[1641790619802,67.2256,143.33,143.28,14.76042461]
[1641790620302,67.2256,143.33,143.3,14.76042461]
[1641790620602,3.95303196,143.32,143.3,14.76042461]
[1641790621004,4.0,143.31,143.27,2.43369406]
[1641790621206,4.0,143.3,143.27,12.19045032]
[1641790621405,10.871,143.3,143.27,12.19045032]
[1641790621604,3.95303196,143.29,143.27,12.19045032]
[1641790622006,3.95303196,143.29,143.25,14.71090786]
[1641790622406,3.95303196,143.29,143.24,39.24720751]
[1641790623306,7.95303196,143.29,143.24,39.24720751]
[1641790623506,3.95303196,143.29,143.24,2.43369406]
[1641790623909,3.95303196,143.29,143.24,6.43369406]
[1641790624310,3.95303196,143.29,143.25,0.79079267]
[1641790625009,27.66479,143.3,143.25,0.79079267]
[1641790625209,27.66479,143.3,143.25,3.22448673]
[1641790625510,27.66479,143.3,143.26,0.79079267]
[1641790626009,27.66479,143.3,143.26,3.22448673]
[1641790626410,27.66479,143.3,143.27,0.79079267]
[1641790626812,27.66479,143.3,143.27,3.22448673]
[1641790627109,27.66479,143.3,143.28,0.79079267]
[1641790627311,27.66479,143.3,143.28,3.22448673]
[1641790627610,27.66479,143.3,143.29,0.79079267]
[1641790628010,27.66479,143.3,143.29,3.22448673]
[1641790628210,71.2256,143.33,143.29,3.22448673]
[1641790628612,67.2256,143.33,143.29,3.22448673]
[1641790628811,67.2256,143.33,143.3,2.43369406]
[1641790629012,3.95327615,143.32,143.3,3.22448673]
[1641790629418,67.2256,143.33,143.31,3.22448673]
[1641790629818,27.66479,143.35,143.32,0.79079267]
[1641790630020,27.66479,143.35,143.32,9.62879267]
[1641790630221,3.95270582,143.34,143.33,0.79079267]
[1641790631022,3.95270582,143.34,143.33,3.22448673]
[1641790631223,27.66479,143.36,143.33,3.22448673]
[1641790631721,3.95233562,143.35,143.34,0.79079267]
[1641790631923,3.95233562,143.35,143.34,3.22448673]
[1641790632721,5.69633562,143.35,143.34,8.673e-05]
[1641790633324,5.69633562,143.35,143.29,63.7218974]
[1641790633623,5.69633562,143.35,143.27,39.24720751]
[1641790633822,70.2633,143.34,143.27,39.24720751]
[1641790634123,3.95307458,143.33,143.28,0.79061492]
[1641790634322,27.66479,143.32,143.28,0.79061492]
[1641790635524,70.2633,143.34,143.27,0.79061492]
[1641790635924,3.95312506,143.33,143.27,0.79061492]
[1641790637527,3.95312506,143.33,143.27,40.03782243]
[1641790637727,5.69712506,143.33,143.27,40.03782243]
[1641790637927,5.69712506,143.33,143.28,0.79061492]
[1641790638129,3.95312506,143.33,143.28,0.79061492]
[1641790638335,27.66479,143.32,143.28,0.79061492]
[1641790640235,1.744,143.35,143.28,0.79061492]
[1641790640533,1.744,143.35,143.3,6.97179907]
[1641790640735,4.0,143.38,143.3,6.97179907]
[1641790641134,3.95157786,143.37,143.31,0.79061492]
[1641790641335,3.95157786,143.37,143.31,8.87061492]
[1641790641536,4.0,143.38,143.31,48.11782243]
[1641790641934,4.0,143.38,143.32,0.79061492]
[1641790642136,1.744,143.39,143.32,0.79061492]
[1641790642338,1.744,143.39,143.33,27.66479]
[1641790642536,137.7136,143.42,143.33,27.66479]
[1641790642537,1.743,143.41,143.33,27.66479]
[1641790642937,3.95132305,143.4,143.34,10.54737118]
[1641790643138,3.95132305,143.4,143.34,18.94037118]
[1641790643337,3.95132305,143.4,143.35,0.79061492]
[1641790643737,7.95132305,143.4,143.35,0.79061492]
[1641790644038,4.0,143.39,143.35,0.79061492]
[1641790644237,1.743,143.38,143.35,0.79061492]
[1641790644537,3.95132305,143.37,143.35,0.79061492]
[1641790644738,4.0,143.36,143.35,0.79061492]
[1641790645938,4.0,143.36,143.34,0.79061492]
[1641790654558,4.0,143.36,143.34,25.30597663]
[1641790654959,4.0,143.36,143.35,0.79061492]
[1641790655361,5.58100331,143.35,143.3,39.24720751]
[1641790655658,4.0,143.33,143.3,39.24720751]
[1641790656061,4.0,143.34,143.3,39.24720751]
[1641790656259,4.0,143.33,143.25,46.22168094]
[1641790656559,4.0,143.3,143.25,46.22168094]
[1641790656759,12.419,143.3,143.26,0.79061954]
[1641790656958,8.419,143.3,143.26,0.79061954]
[1641790657759,29.40879,143.33,143.26,0.79061954]
[1641790658361,3.95327969,143.32,143.26,0.79061954]
[1641790658561,67.91837969,143.32,143.26,0.79061954]
[1641790658961,67.91837969,143.32,143.26,28.45540954]
[1641790659262,63.9651,143.32,143.27,0.79061954]
[1641790659661,29.40879,143.35,143.27,0.79061954]
[1641790659862,91.89589,143.35,143.27,0.79061954]
[1641790660063,3.95261388,143.34,143.27,0.79061954]
[1641790660466,3.95261388,143.34,143.27,10.57516992]
[1641790661265,5.69661388,143.34,143.28,0.79061954]
[1641790661464,9.69661388,143.34,143.28,0.79061954]
[1641790661664,3.95261388,143.33,143.28,7.85261954]
[1641790662064,3.95261388,143.33,143.29,0.79061954]
[1641790663068,3.95261388,143.33,143.29,28.45540954]
[1641790663567,3.95261388,143.33,143.29,0.79061954]
[1641790663865,3.95261388,143.33,143.3,0.79061954]
[1641790664067,1.744,143.32,143.3,0.79061954]
[1641790664567,1.744,143.32,143.27,0.79061954]
[1641790664767,1.744,143.33,143.27,10.57515489]
[1641790664968,5.744,143.33,143.27,10.57515489]
[1641790665669,3.95324301,143.32,143.28,0.79061954]
[1641790665868,7.95324301,143.32,143.28,0.79061954]
[1641790666369,1.744,143.31,143.28,0.79061954]
[1641790666568,5.69724301,143.31,143.26,0.79061954]
[1641790666769,3.95324301,143.31,143.26,0.79061954]
[1641790667068,31.66479,143.32,143.26,0.79061954]
[1641790667468,3.95328545,143.31,143.26,0.79061954]
[1641790667871,73.62448545,143.31,143.26,0.79061954]
[1641790668272,69.6712,143.31,143.26,0.79061954]
[1641790672979,69.6712,143.31,143.27,2.43941007]
[1641790673180,69.6712,143.31,143.27,11.07941007]
[1641790673579,69.6712,143.31,143.28,0.79061954]
[1641790673779,69.6712,143.31,143.28,3.23002961]
[1641790674379,69.6712,143.31,143.29,0.79061954]
[1641790674580,69.6712,143.31,143.29,3.23002961]
[1641790674981,27.66479,143.32,143.29,3.23002961]
[1641790675179,27.66479,143.32,143.3,3.23002961]
[1641790675580,31.66479,143.32,143.31,0.79061954]
[1641790675779,31.66479,143.32,143.31,3.23002961]
[1641790676179,35.61792213,143.32,143.31,3.23002961]
[1641790677582,31.61792213,143.32,143.31,3.23002961]
[1641790677981,3.95313213,143.32,143.31,3.23002961]
[1641790679083,7.95313213,143.32,143.31,3.23002961]
[1641790681386,3.95313213,143.32,143.31,3.23002961]
[1641790682885,3.95313213,143.32,143.31,11.77302961]
[1641790686188,82.04439281,143.34,143.31,11.77302961]
[1641790686389,82.04439281,143.34,143.31,26.58791551]
[1641790686590,82.04439281,143.34,143.32,0.79061954]
[1641790686789,3.95304811,143.33,143.32,0.79061954]
[1641790688289,3.95304811,143.33,143.32,15.60550544]
[1641790688789,3.95304811,143.33,143.32,0.79061954]
[1641790688989,3.95304811,143.36,143.32,0.79061954]
[1641790689990,3.95304811,143.36,143.34,14.80936031]
[1641790690191,3.95304811,143.36,143.34,21.17636031]
[1641790690790,3.95304811,143.36,143.35,0.79061954]
[1641790691590,7.95304811,143.36,143.35,0.79061954]
[1641790692290,5.69604811,143.36,143.35,0.79061954]
[1641790692992,5.69604811,143.36,143.34,0.79061954]
[1641790693392,3.95304811,143.35,143.34,0.79061954]
[1641790695296,3.95304811,143.35,143.34,1.954e-05]
[1641790695696,37.36183811,143.35,143.34,1.954e-05]
[1641790696097,37.36183811,143.35,143.32,14.80936031]
[1641790696298,1.744,143.34,143.32,14.80936031]
[1641790696496,5.69704811,143.34,143.33,0.79059011]
[1641790696999,5.69704811,143.34,143.31,0.79059011]
[1641790697198,5.69704811,143.34,143.33,0.79059011]
[1641790697600,5.69704811,143.34,143.31,0.79059011]
[1641790698099,3.95304811,143.33,143.31,0.79059011]
[1641790701103,3.95304811,143.33,143.31,15.59995042]
[1641790701305,3.95304811,143.35,143.31,15.59995042]
[1641790701503,3.95304811,143.35,143.31,24.41095042]
[1641790701706,3.95304811,143.36,143.32,0.79059011]
[1641790701905,3.95304811,143.36,143.33,14.80936031]
[1641790702305,65.5088,143.37,143.33,14.80936031]
[1641790702705,65.5088,143.37,143.34,0.79059011]
[1641790702906,65.5088,143.37,143.34,24.22095042]
[1641790703508,65.5088,143.37,143.35,0.79059011]
[1641790703708,69.5088,143.37,143.35,0.79059011]
[1641790703907,69.5088,143.37,143.35,3.23435294]
[1641790704314,4.0,143.37,143.35,3.23435294]
[1641790704508,4.0,143.37,143.36,3.23435294]
[1641790704909,7.95177482,143.37,143.36,3.23435294]
[1641790709515,3.95177482,143.37,143.36,3.23435294]
[1641790711116,7.95177482,143.37,143.36,3.23435294]
[1641790712915,15.27493034,143.37,143.34,14.80936031]
[1641790713117,4.0,143.36,143.34,14.80936031]
[1641790713318,9.58083534,143.35,143.34,3.02196031]
[1641790713617,2.55954737,143.34,143.31,49.03174286]
[1641790713818,5.744,143.33,143.29,24.4940286]
[1641790714018,5.744,143.33,143.29,9.78453535]
[1641790714718,3.95302148,143.32,143.3,0.7906043]
[1641790715921,3.95302148,143.32,143.28,0.7906043]
[1641790716220,3.95302148,143.33,143.28,0.7906043]
[1641790716421,3.95302148,143.33,143.28,10.57513965]
[1641790717426,3.95302148,143.33,143.29,0.7906043]
[1641790718027,7.95302148,143.33,143.29,0.7906043]
[1641790718629,3.95302148,143.32,143.29,0.7906043]
[1641790719432,81.66402927,143.34,143.29,0.7906043]
[1641790719433,3.95302148,143.33,143.29,0.7906043]
[1641790719633,3.95302148,143.33,143.29,7.9366043]
[1641790720033,3.95302148,143.33,143.3,0.7906043]
[1641790720331,1.744,143.36,143.3,0.7906043]
[1641790720531,6.69633815,143.37,143.3,0.7906043]
[1641790720732,10.69633815,143.37,143.3,0.7906043]
[1641790720934,3.95247977,143.35,143.3,0.7906043]
[1641790721134,7.95247977,143.36,143.3,0.7906043]
[1641790721632,3.95247977,143.35,143.3,0.7906043]
[1641790723134,7.95247977,143.35,143.3,0.7906043]
[1641790723333,7.95247977,143.35,143.29,0.7906043]
[1641790723634,3.95247977,143.34,143.29,0.7906043]
[1641790725436,3.95247977,143.35,143.29,0.7906043]
[1641790725636,3.95247977,143.35,143.29,9.7206043]
[1641790725837,3.95247977,143.35,143.29,37.3853943]
[1641790726337,3.95247977,143.35,143.3,0.7906043]
[1641790726537,3.95247977,143.35,143.3,10.57513965]
[1641790727138,3.95247977,143.35,143.31,0.7906043]
[1641790727338,1.744,143.34,143.31,0.7906043]
[1641790728140,1.744,143.34,143.29,0.7906043]
[1641790728340,68.6352,143.34,143.29,0.7906043]
[1641790729140,72.6352,143.34,143.29,0.7906043]
[1641790731244,68.6352,143.34,143.29,0.7906043]
[1641790734748,66.8912,143.34,143.29,0.7906043]
[1641790734948,66.8912,143.34,143.29,10.57513965]
[1641790735347,66.8912,143.34,143.3,0.7906043]
[1641790739251,66.8912,143.34,143.3,7.1446043]
[1641790739653,66.8912,143.34,143.31,0.7906043]
[1641790741956,66.8912,143.34,143.31,28.4553943]
[1641790742455,66.8912,143.34,143.32,10.57513965]
[1641790742655,6.69633815,143.37,143.32,10.57513965]
[1641790742855,6.69633815,143.37,143.33,0.7906043]
[1641790743056,6.69633815,143.37,143.33,10.0716043]
[1641790743458,3.95229262,143.36,143.33,10.0716043]
[1641790743859,3.95229262,143.36,143.34,0.7906043]
[1641790744361,3.95229262,143.36,143.34,15.58857763]
[1641790744761,4.0,143.36,143.35,0.7906043]
[1641790744962,9.58055593,143.36,143.35,0.7906043]
[1641790745262,5.58055593,143.36,143.35,0.7906043]
[1641790745662,9.58055593,143.36,143.33,14.79797333]
[1641790745861,33.24534593,143.36,143.33,14.79797333]
[1641790746061,5.58055593,143.36,143.33,14.79797333]
[1641790746464,4.0,143.38,143.33,14.79797333]
[1641790746665,4.0,143.38,143.33,7.073]
[1641790746666,1.743,143.38,143.33,7.073]
[1641790746864,1.743,143.38,143.34,0.79047081]
[1641790747069,5.743,143.38,143.34,0.79047081]
[1641790747265,1.743,143.38,143.34,15.58844414]
[1641790747667,1.743,143.38,143.35,0.79047081]
[1641790747867,5.5793015,143.39,143.35,0.79047081]
[1641790748368,5.5793015,143.39,143.36,14.79797333]
[1641790748569,5.5793015,143.39,143.36,21.10597333]
[1641790748970,5.5793015,143.39,143.37,0.79047081]
[1641790750370,5.5793015,143.39,143.36,0.79047081]
[1641790753576,5.5793015,143.39,143.37,2.44479436]
[1641790753875,5.5793015,143.39,143.38,0.79047081]
[1641790754776,9.5793015,143.39,143.37,10.88979436]
[1641790754977,5.743,143.38,143.37,8.445]
[1641790755178,5.743,143.38,143.37,2.86484236]
[1641790755380,1.743,143.38,143.37,2.86484236]
[1641790755579,1.743,143.38,143.33,42.46276333]
[1641790756079,1.743,143.38,143.34,0.79040923]
[1641790756279,1.743,143.38,143.37,2.44507135]
[1641790756580,5.743,143.38,143.37,2.44507135]
[1641790756779,5.743,143.38,143.34,0.79040923]
[1641790756979,4.0,143.37,143.32,14.79797333]
[1641790757279,1.744,143.36,143.32,14.79797333]
[1641790757684,1.744,143.36,143.33,0.7905093]
[1641790758179,1.744,143.36,143.32,0.7905093]
[1641790758381,1.744,143.36,143.34,0.7905093]
[1641790758880,1.744,143.36,143.32,0.7905093]
[1641790760183,3.95257018,143.35,143.32,0.7905093]
[1641790760783,4.0,143.34,143.32,0.7905093]
[1641790760984,11.32518094,143.34,143.32,0.7905093]
[1641790761183,3.95257018,143.33,143.32,0.7905093]
[1641790761988,3.95257018,143.33,143.31,0.7905093]
[1641790762884,3.95257018,143.33,143.3,0.7905093]
[1641790766589,7.95257018,143.33,143.29,0.7905093]
[1641790766989,3.95257018,143.32,143.29,0.7905093]
[1641790767490,3.95257018,143.33,143.29,0.7905093]
[1641790767691,7.95257018,143.33,143.29,0.7905093]
[1641790768293,3.95257018,143.32,143.29,0.7905093]
[1641790768491,5.69657018,143.32,143.29,0.7905093]
[1641790769091,3.95257018,143.31,143.29,0.7905093]
[1641790769292,7.95257018,143.31,143.29,0.7905093]
[1641790769491,3.95257018,143.31,143.29,0.7905093]
[1641790769693,9.58302858,143.3,143.29,9.3e-06]
[1641790770493,9.58302858,143.3,143.27,14.79797333]
[1641790770894,3.95394557,143.29,143.28,0.79078911]
[1641790771294,3.95394557,143.29,143.26,0.79078911]
[1641790772395,3.95394557,143.29,143.26,15.58876244]
[1641790772695,3.95394557,143.3,143.27,0.79078911]
[1641790775299,7.95394557,143.3,143.27,0.79078911]
[1641790775996,3.95394557,143.29,143.27,0.79078911]
[1641790776197,12.05394557,143.29,143.27,0.79078911]
[1641790776398,12.05394557,143.29,143.26,0.79078911]
[1641790776800,3.95394557,143.28,143.26,0.79078911]
[1641790777401,3.95394557,143.28,143.25,0.79078911]
[1641790777803,3.95394557,143.28,143.27,0.79078911]
[1641790778203,3.95394557,143.28,143.25,0.79078911]
[1641790778602,3.95394557,143.29,143.25,0.79078911]
[1641790778904,1.745,143.3,143.25,0.79078911]
[1641790779105,5.745,143.3,143.25,0.79078911]
[1641790779405,31.61863439,143.29,143.25,0.79078911]
[1641790779805,3.95384439,143.28,143.25,0.79078911]
[1641790780706,4.0,143.26,143.25,0.79078911]
[1641790780906,8.827,143.26,143.25,0.79078911]
[1641790781106,12.78084439,143.26,143.25,0.79078911]
[1641790781306,44.44563439,143.26,143.24,14.79797333]
[1641790781507,1.745,143.25,143.24,14.79797333]
[1641790781906,5.745,143.25,143.21,53.93883686]
[1641790782106,4.0,143.22,143.19,9.78757062]
[1641790782308,11.33131018,143.21,143.19,9.78757062]
[1641790782709,11.33131018,143.21,143.2,0.79126916]
[1641790782908,7.33131018,143.21,143.2,0.79126916]
[1641790783308,34.99610018,143.21,143.2,0.79126916]
[1641790783508,38.99610018,143.21,143.2,0.79126916]
[1641790783710,34.99610018,143.21,143.2,0.79126916]
[1641790783909,34.99610018,143.21,143.13,0.79126916]
[1641790784109,64.0301,143.2,143.13,0.79126916]
[1641790784911,1.746,143.24,143.16,4.0]
[1641790785111,1.746,143.24,143.16,10.677]
[1641790785313,66.2411,143.25,143.19,27.66479]
[1641790785517,66.2411,143.25,143.19,35.43379]
[1641790785718,4.0,143.24,143.2,0.79126916]
[1641790785914,66.2411,143.25,143.2,0.79126916]
[1641790786315,9.58543628,143.23,143.2,0.79126916]
[1641790786515,1.745,143.22,143.2,0.79126916]
[1641790786916,1.745,143.22,143.13,0.79126916]
[1641790787316,33.40979,143.22,143.14,27.66479]
[1641790787716,33.40979,143.22,143.15,0.79126916]
[1641790787920,4.0,143.21,143.15,0.79126916]
[1641790788123,77.90210528,143.2,143.15,0.79126916]
[1641790788319,86.47010528,143.2,143.15,0.79126916]
[1641790788518,86.47010528,143.2,143.13,0.79126916]
[1641790788719,82.47012045,143.2,143.13,0.79126916]
[1641790789420,27.66479,143.19,143.13,0.79126916]
[1641790790020,33.25191333,143.19,143.13,0.79126916]
[1641790790723,1.746,143.18,143.13,0.79126916]
[1641790791621,5.58812486,143.17,143.13,0.79126916]
[1641790791821,1.746,143.16,143.13,0.79126916]
[1641790792023,5.746,143.16,143.13,0.79126916]
[1641790792223,64.1439,143.15,143.1,0.79126916]
[1641790792424,1.746,143.14,143.1,0.79126916]
[1641790792623,7.804,143.14,143.07,0.79126916]
[1641790793425,35.46879,143.14,143.07,0.79126916]
[1641790795728,7.804,143.14,143.07,0.79126916]
[1641790795927,1.746,143.14,143.07,0.79126916]
[1641790796928,1.746,143.14,143.08,2.42122399]
[1641790797728,1.746,143.14,143.09,0.79126916]
[1641790798629,1.746,143.14,143.1,2.42122399]
[1641790798929,1.746,143.14,143.11,0.79126916]
[1641790800634,1.746,143.14,143.06,0.79126916]
[1641790800835,1.746,143.14,143.06,4.79126916]
[1641790801337,1.747,143.18,143.11,4.0]
[1641790801633,71.3612,143.2,143.11,9.89]
[1641790801834,71.3612,143.2,143.12,0.79126916]
[1641790802035,99.02599,143.2,143.12,28.45605916]
[1641790802433,3.95663226,143.19,143.12,28.45605916]
[1641790802734,3.95663226,143.19,143.13,3.2143602]
[1641790803135,3.95663226,143.19,143.14,0.79126916]
[1641790803336,1.746,143.18,143.14,0.79126916]
[1641790803536,1.746,143.18,143.14,3.2143602]
[1641790803936,1.746,143.18,143.15,0.79126916]
[1641790804135,1.746,143.19,143.15,0.79126916]
[1641790804335,1.746,143.19,143.15,3.2143602]
[1641790804836,3.95670017,143.18,143.16,0.79126916]
[1641790806636,3.95670017,143.18,143.13,4.0]
[1641790807036,3.95670017,143.21,143.17,0.79126916]
[1641790807936,3.95670017,143.22,143.15,0.79126916]
[1641790808236,10.263,143.21,143.15,0.79126916]
[1641790808439,10.263,143.21,143.16,2.42938605]
[1641790808736,3.95670017,143.2,143.16,2.42938605]
[1641790809136,3.95670017,143.2,143.17,0.79126916]
[1641790809937,3.95670017,143.21,143.17,0.79126916]